[Event "Austrian Youth-ch U16 Boys 2024"]
[Site "Leibnitz"]
[Date "2024.03.25"]
[Round "3.1"]
[White "Nguyen, Le Minh Phu"]
[Black "Geroe, Leonhard"]
[Result "1/2-1/2"]
[ECO "A06"]
[WhiteElo "2218"]
[BlackElo "2094"]
[Annotator "RC"]
[PlyCount "46"]
[EventDate "2024.03.23"]
[EventType "swiss"]
[EventCountry "AUT"]
[SourceTitle "playchess.com"]
[Source "ChessBase"]
[SourceQuality "1"]
[TimeControl "5400+30"]

1. b3 {[%emt 0:00:05]} d5 {[%emt 0:00:35]} 2. Bb2 {[%emt 0:00:05]} c6 {[%emt 0:00:25]} 3. Nf3 {[%emt 0:00:06]} Bg4 {[%emt 0:00:06]} 4. e3 {[%emt 0:00:11]} Nd7 {[%emt 0:00:17]} 5. Be2 {[%emt 0:00:20]} Ngf6 {[%emt 0:00:28]} 6. O-O {[%emt 0:01:09]} e6 {[%emt 0:01:19]} 7. Ne5 {[%emt 0:00:38]} Bxe2 {[%emt 0:04:08]} 8. Qxe2 {[%emt 0:00:04]} Nxe5 {[%emt 0:01:45]} 9. Bxe5 {[%emt 0:00:05]} Bd6 {[%emt 1:25:57]} 10. f4 {[%emt 0:00:07]} O-O {[%emt 0:00:00]} 11. c4 {[%emt 0:03:58]} Bxe5 {[%emt 0:00:00]} 12. fxe5 {[%emt 0:00:14]} Nd7 {[%emt 0:00:00]} 13. d4 {[%emt 0:00:07]} f6 {[%emt 0:00:00]} 14. exf6 {[%emt 0:00:07]} Rxf6 {[%emt 0:00:00]} 15. Nd2 {[%emt 0:01:26]} Qa5 {[%emt 0:00:00]} 16. Nf3 {[%emt 0:10:17]} dxc4 {[%emt 0:00:00]} 17. Qxc4 {[%emt 0:00:36]} Qd5 {[%emt 0:00:00]} 18. Rae1 {[%emt 0:13:14]} c5 {[%emt 0:00:00]} 19. Qc2 {[%emt 0:07:30]} cxd4 {[%emt 0:00:00]} 20. exd4 {[%emt 0:00:08]} Raf8 {[%emt 0:00:00]} 21. Qe4 {[%emt 0:05:57]} Nb8 {[%emt 0:00:00]} 22. Qxd5 {[%emt 0:09:41]} exd5 {[%emt 0:00:00]} 23. Re5 {[%emt 0:00:06]} Rf5 {[%emt 0:01:07]} 1/2-1/2

[Event "Austrian Youth-ch U16 Boys 2024"]
[Site "Leibnitz"]
[Date "2024.03.25"]
[Round "3.2"]
[White "Leitgeb, Julian"]
[Black "Gschwandtl, Alexander"]
[Result "1-0"]
[ECO "C77"]
[WhiteElo "2130"]
[BlackElo "1997"]
[Annotator "RC"]
[PlyCount "73"]
[EventDate "2024.03.23"]
[EventType "swiss"]
[EventCountry "AUT"]
[SourceTitle "playchess.com"]
[Source "ChessBase"]
[SourceQuality "1"]
[TimeControl "5400+30"]

1. e4 {[%emt 0:00:03]} e5 {[%emt 0:00:10]} 2. Nf3 {[%emt 0:00:03]} Nc6 {[%emt 0:00:04]} 3. Bb5 {[%emt 0:00:07]} a6 {[%emt 0:00:04]} 4. Ba4 {[%emt 0:00:04]} Nf6 {[%emt 0:00:03]} 5. d3 {[%emt 0:00:06]} Bc5 {[%emt 0:00:07]} 6. c3 {[%emt 0:00:10]} b5 {[%emt 1:33:02]} 7. Bb3 {[%emt 0:00:05]} d6 {[%emt 0:00:00]} 8. Bg5 {[%emt 0:00:29]} h6 {[%emt 0:00:00]} 9. Bh4 {[%emt 0:00:30]} Bb6 {[%emt 0:00:00]} 10. a4 {[%emt 0:05:54]} Rb8 {[%emt 0:00:00]} 11. axb5 {[%emt 0:08:48]} axb5 {[%emt 0:00:00]} 12. Nbd2 {[%emt 0:08:40]} g5 {[%emt 0:00:00]} 13. Bg3 {[%emt 0:01:51]} Nh7 {[%emt 0:00:00]} 14. Nf1 {[%emt 0:11:20]} Nf8 {[%emt 0:00:00]} 15. Ne3 {[%emt 0:07:43]} Ng6 {[%emt 0:00:00]} 16. Nd5 {[%emt 0:05:43]} Bd7 {[%emt 0:00:00]} 17. h4 {[%emt 0:11:37]} g4 {[%emt 0:00:00]} 18. Nd2 {[%emt 0:07:37]} h5 {[%emt 0:00:00]} 19. f4 {[%emt 0:01:25]} exf4 {[%emt 0:00:00]} 20. Nxf4 {[%emt 0:00:31]} Nxf4 {[%emt 0:00:00]} 21. Bxf4 {[%emt 0:00:02]} Qf6 {[%emt 0:00:00]} 22. g3 {[%emt 0:01:31]} O-O {[%emt 0:00:00]} 23. Qe2 {[%emt 0:05:12]} b4 {[%emt 0:02:58]} 24. Rc1 {[%emt 0:10:30]} Be6 {[%emt 0:04:11]} 25. Ba4 {[%emt 0:01:07]} Na7 {[%emt 0:01:18]} 26. d4 {[%emt 0:00:32]} Qg6 {[%emt 0:00:51]} 27. O-O {[%emt 0:00:27]} f5 {[%emt 0:00:35]} 28. exf5 {[%emt 0:00:35]} Bxf5 {[%emt 0:00:10]} 29. Bb3+ {[%emt 0:00:28]} Kh7 {[%emt 0:00:15]} 30. Bg5 {[%emt 0:02:15]} Rbe8 {[%emt 0:00:29]} 31. Qf2 {[%emt 0:01:01]} Nc6 {[%emt 0:01:07]} 32. Nc4 {[%emt 0:00:15]} Ba7 {[%emt 0:00:26]} 33. Ne3 {[%emt 0:00:20]} Be4 {[%emt 0:00:38]} 34. Qxf8 {[%emt 0:01:05]} Rxf8 {[%emt 0:00:07]} 35. Rxf8 {[%emt 0:00:03]} d5 {[%emt 0:00:42]} 36. Rf6 {[%emt 0:00:12]} Qe8 {[%emt 0:00:28]} 37. Ba4 {[%emt 0:10:39]} 1-0

[Event "Austrian Youth-ch U16 Boys 2024"]
[Site "Leibnitz"]
[Date "2024.03.25"]
[Round "3.3"]
[White "Schramml, Fabian"]
[Black "Gruenwald, Simon"]
[Result "0-1"]
[ECO "A35"]
[WhiteElo "1894"]
[BlackElo "2117"]
[Annotator "RC"]
[PlyCount "132"]
[EventDate "2024.03.23"]
[EventType "swiss"]
[EventCountry "AUT"]
[SourceTitle "playchess.com"]
[Source "ChessBase"]
[SourceQuality "1"]
[TimeControl "5400+30"]

1. e4 {[%emt 0:00:03]} c6 {[%emt 0:00:01]} 2. d4 {[%emt 0:00:11]} d5 {[%emt 0:00:02]} 3. exd5 {[%emt 0:00:09]} cxd5 {[%emt 0:00:02]} 4. c4 {[%emt 0:00:13]} Nf6 {[%emt 0:00:01]} 5. Nc3 {[%emt 0:00:09]} Nc6 {[%emt 0:00:01]} 6. Nf3 {[%emt 0:00:10]} g6 {[%emt 0:00:01]} 7. cxd5 {[%emt 0:00:57]} Nxd5 {[%emt 0:00:02]} 8. Qb3 {[%emt 1:32:38]} Nxc3 {[%emt 0:00:09]} 9. bxc3 {[%emt 0:00:00]} Bg7 {[%emt 0:00:40]} 10. Bb5 {[%emt 0:00:00]} O-O {[%emt 0:00:55]} 11. Bxc6 {[%emt 0:00:00]} bxc6 {[%emt 0:00:20]} 12. O-O {[%emt 0:00:00]} Be6 {[%emt 0:12:19]} 13. Qa4 {[%emt 0:00:00]} c5 {[%emt 0:07:36]} 14. Ba3 {[%emt 0:00:00]} cxd4 {[%emt 0:03:06]} 15. cxd4 {[%emt 0:00:00]} Bd5 {[%emt 0:09:04]} 16. Ne5 {[%emt 0:00:00]} Re8 {[%emt 0:01:17]} 17. Rfd1 {[%emt 0:00:00]} e6 {[%emt 0:02:28]} 18. Nc4 {[%emt 0:00:00]} Qg5 {[%emt 0:02:00]} 19. Ne3 {[%emt 0:00:00]} Red8 {[%emt 0:06:04]} 20. Nxd5 {[%emt 0:00:00]} Rxd5 {[%emt 0:04:35]} 21. Bc5 {[%emt 0:00:00]} Rxc5 {[%emt 0:12:47]} 22. dxc5 {[%emt 0:00:00]} Bxa1 {[%emt 0:00:11]} 23. Qc6 {[%emt 0:00:00]} Rd8 {[%emt 0:01:33]} 24. Rxa1 {[%emt 0:00:00]} Qd5 {[%emt 0:05:05]} 25. Qxd5 {[%emt 0:00:00]} Rxd5 {[%emt 0:00:29]} 26. Rc1 {[%emt 0:00:00]} Rd7 {[%emt 0:00:40]} 27. Kf1 {[%emt 0:00:00]} Kf8 {[%emt 0:00:08]} 28. Ke2 {[%emt 0:00:00]} Ke7 {[%emt 0:00:09]} 29. Rb1 {[%emt 0:00:00]} Kd8 {[%emt 0:01:23]} 30. Rb3 {[%emt 0:00:00]} Kc7 {[%emt 0:01:08]} 31. Rh3 {[%emt 0:00:00]} h5 {[%emt 0:01:57]} 32. Rc3 {[%emt 0:00:00]} Kc6 {[%emt 0:00:33]} 33. a3 {[%emt 0:00:00]} Rd5 {[%emt 0:03:41]} 34. Rf3 {[%emt 0:00:00]} Rd7 {[%emt 0:03:58]} 35. Rc3 {[%emt 0:00:00]} Rd5 {[%emt 0:00:01]} 36. Rf3 {[%emt 0:00:00]} Rf5 {[%emt 0:00:01]} 37. Rd3 {[%emt 0:00:28]} Rxc5 {[%emt 0:00:37]} 38. Rd8 {[%emt 0:00:24]} Kb6 {[%emt 0:02:53]} 39. Rb8+ {[%emt 0:01:09]} Ka6 {[%emt 0:01:24]} 40. Rf8 {[%emt 0:00:48]} Rc7 {[%emt 0:00:10]} 41. Rb8 {[%emt 0:01:23]} Ka5 {[%emt 0:00:20]} 42. Rb3 {[%emt 0:00:33]} Ka4 {[%emt 0:00:29]} 43. Rf3 {[%emt 0:00:13]} Rd7 {[%emt 0:01:07]} 44. Ke1 {[%emt 0:00:59]} a5 {[%emt 0:01:52]} 45. Ke2 {[%emt 0:00:12]} e5 {[%emt 0:02:36]} 46. h3 {[%emt 0:01:06]} f5 {[%emt 0:05:08]} 47. Re3 {[%emt 0:02:02]} Rd4 {[%emt 0:03:30]} 48. Rg3 {[%emt 0:01:52]} Rd6 {[%emt 0:01:08]} 49. Re3 {[%emt 0:00:16]} e4 {[%emt 0:00:31]} 50. Rc3 {[%emt 0:03:45]} Rb6 {[%emt 0:02:04]} 51. Rg3 {[%emt 0:00:36]} h4 {[%emt 0:03:53]} 52. Rc3 {[%emt 0:06:14]} Rb2+ {[%emt 0:00:47]} 53. Ke1 {[%emt 0:00:00]} Rb1+ {[%emt 0:00:09]} 54. Ke2 {[%emt 0:00:00]} Rb2+ {[%emt 0:01:14]} 55. Ke1 {[%emt 0:00:00]} Rb3 {[%emt 0:00:11]} 56. Rc6 {[%emt 0:00:00]} Kxa3 {[%emt 0:00:47]} 57. Rxg6 {[%emt 0:00:00]} a4 {[%emt 0:00:34]} 58. Ra6 {[%emt 0:00:00]} Rb4 {[%emt 0:00:19]} 59. Rd6 {[%emt 0:00:00]} Kb2 {[%emt 0:00:35]} 60. Rd2+ {[%emt 0:00:00]} Ka1 {[%emt 0:00:03]} 61. g3 {[%emt 0:00:00]} Rb1+ {[%emt 0:01:42]} 62. Ke2 {[%emt 0:00:11]} Rb2 {[%emt 0:00:26]} 63. gxh4 {[%emt 0:00:14]} a3 {[%emt 0:00:13]} 64. h5 {[%emt 0:00:30]} a2 {[%emt 0:00:36]} 65. h6 {[%emt 0:00:12]} Rxd2+ {[%emt 0:00:11]} 66. Kxd2 {[%emt 0:00:15]} Kb1 {[%emt 0:00:01]} 0-1

[Event "Austrian Youth-ch U16 Boys 2024"]
[Site "Leibnitz"]
[Date "2024.03.25"]
[Round "3.4"]
[White "Wu, Chenshan"]
[Black "Groessing, Daniel-Yosuke"]
[Result "1/2-1/2"]
[ECO "E39"]
[WhiteElo "1815"]
[BlackElo "1897"]
[Annotator "NA RC"]
[PlyCount "109"]
[EventDate "2024.03.23"]
[EventType "swiss"]
[EventCountry "AUT"]
[SourceTitle "playchess.com"]
[Source "ChessBase"]
[SourceQuality "1"]
[TimeControl "5400+30"]

1. d4 {[%emt 0:00:02]} Nf6 {[%emt 0:00:12]} 2. c4 {[%emt 0:00:06]} e6 {[%emt 0:00:15]} 3. Nc3 {[%emt 0:00:04]} Bb4 {[%emt 0:00:10]} 4. Qc2 {[%emt 0:00:05]} O-O {[%emt 0:00:28]} 5. Bg5 {[%emt 0:00:31]} c5 {[%emt 0:00:39]} 6. dxc5 {[%emt 0:01:00]} Qa5 {[%emt 0:01:01]} 7. Bd2 {[%emt 0:02:08] E39: Nimzo-Indian: Classical: 4...c5 5 dxc5 0-0.} Qxc5 {[%emt 0:01:59]} 8. e3 {[%emt 0:00:50]} Qc7 {[%emt 0:02:28]} 9. Nf3 {[%emt 0:01:02]} Nc6 {[%emt 0:02:14]} 10. Be2 {[%emt 0:03:55]} Be7 {[%emt 0:02:42]} 11. O-O {[%emt 0:01:43]} b6 {[%emt 0:02:31]} 12. Nb5 {[%emt 0:03:09]} Qb8 {[%emt 0:02:37]} 13. Bc3 {[%emt 0:02:49]} Bb7 {[%emt 0:06:45]} 14. Rfd1 {[%emt 0:04:55]} d5 {[%emt 0:06:01]} 15. Bxf6 {[%emt 0:03:28]} Bxf6 {[%emt 0:00:31]} 16. cxd5 {[%emt 0:00:35]} Nb4 {[%emt 0:02:44]} 17. Qd2 {[%emt 0:10:13]} Nxd5 {[%emt 0:02:33]} 18. e4 {[%emt 0:03:49]} Nf4 {[%emt 0:05:06]} 19. Nd6 {[%emt 0:04:34]} Nxe2+ {[%emt 0:01:28]} 20. Qxe2 {[%emt 0:00:09]} Rd8 {[%emt 0:02:59]} 21. Nxb7 {[%emt 0:01:29]} Qxb7 {[%emt 0:00:22]} 22. Rac1 {[%emt 0:06:10]} Rac8 {[%emt 0:04:07]} 23. h3 {[%emt 0:01:35]} g6 {[%emt 0:03:01]} 24. e5 {[%emt 0:04:36]} Be7 {[%emt 0:00:34]} 25. Qe3 {[%emt 0:02:55]} Kg7 {[%emt 0:01:30]} 26. Ng5 {[%emt 0:08:56]} h6 {[%emt 0:08:32]} 27. Ne4 {[%emt 0:01:01]} Rd5 {[%emt 0:07:55]} 28. Nd6 {[%emt 0:04:41]} Rxc1 {[%emt 0:03:41]} 29. Qxc1 {[%emt 0:01:34]} Qd7 {[%emt 0:05:40]} 30. Rxd5 {[%emt 0:07:47]} exd5 {[%emt 0:00:23]} 31. Qc3 {[%emt 0:01:50]} f6 {[%emt 0:07:25]} 32. Qc8 {[%emt 0:05:30]} Qxc8 {[%emt 0:03:00]} 33. Nxc8 {[%emt 0:00:05]} Bc5 {[%emt 0:00:10]} 34. exf6+ {[%emt 0:00:08]} Kxf6 {[%emt 0:00:13]} 35. Nxa7 {[%emt 0:00:24]} Ke5 {[%emt 0:04:21]} 36. Kf1 {[%emt 0:01:09]} Ke4 {[%emt 0:01:41]} 37. Ke2 {[%emt 0:01:06]} g5 {[%emt 0:01:49]} 38. Nc6 {[%emt 0:05:06]} d4 {[%emt 0:03:10]} 39. a3 {[%emt 0:01:28]} d3+ {[%emt 0:01:12]} 40. Ke1 {[%emt 0:00:25]} d2+ {[%emt 0:01:01]} 41. Kxd2 {[%emt 0:00:07]} Bxf2 {[%emt 0:00:10]} 42. Ke2 {[%emt 0:00:21]} Bc5 {[%emt 0:01:04]} 43. Nb4 {[%emt 0:02:38]} h5 {[%emt 0:02:09]} 44. Nd3 {[%emt 0:00:07]} Bd4 {[%emt 0:00:40]} 45. b3 {[%emt 0:01:04]} g4 {[%emt 0:01:19]} 46. hxg4 {[%emt 0:00:29]} hxg4 {[%emt 0:00:06]} 47. a4 {[%emt 0:00:30]} Bc3 {[%emt 0:01:18]} 48. g3 {[%emt 0:02:05]} Bd4 {[%emt 0:00:42]} 49. Nf2+ {[%emt 0:00:39]} Kf5 {[%emt 0:00:54]} 50. b4 {[%emt 0:00:25]} Bc3 {[%emt 0:00:31]} 51. b5 {[%emt 0:01:11]} Be5 {[%emt 0:00:33]} 52. Nh1 {[%emt 0:01:04]} Ke4 {[%emt 0:00:09]} 53. Nf2+ {[%emt 0:00:04]} Kd4 {[%emt 0:00:52]} 54. Nxg4 {[%emt 0:00:11]} Bxg3 $11 {[%emt 0:00:02]} 55. Nf6 {[%emt 0:04:03]} 1/2-1/2

[Event "Austrian Youth-ch U16 Boys 2024"]
[Site "Leibnitz"]
[Date "2024.03.25"]
[Round "3.5"]
[White "Haselsberger, Armin"]
[Black "Squasi, Ernesto"]
[Result "1/2-1/2"]
[ECO "E19"]
[WhiteElo "1869"]
[BlackElo "1743"]
[Annotator "NA RC"]
[PlyCount "102"]
[EventDate "2024.03.23"]
[EventType "swiss"]
[EventCountry "AUT"]
[SourceTitle "playchess.com"]
[Source "ChessBase"]
[SourceQuality "1"]
[TimeControl "5400+30"]

1. Nf3 {[%emt 0:00:36]} Nf6 {[%emt 0:00:04]} 2. c4 {[%emt 0:00:30]} e6 {[%emt 0:00:09]} 3. g3 {[%emt 0:00:41]} b6 {[%emt 0:01:26]} 4. Bg2 {[%emt 0:00:51]} Bb7 {[%emt 0:00:29]} 5. O-O {[%emt 0:02:27]} Be7 {[%emt 0:00:33]} 6. d4 {[%emt 0:00:38]} d6 {[%emt 0:01:14]} 7. Nc3 {[%emt 0:03:51]} Ne4 {[%emt 0:02:22]} 8. Qc2 {[%emt 0:03:25]} Nxc3 {[%emt 0:01:21]} 9. Qxc3 {[%emt 0:00:45]} O-O {[%emt 0:01:55]} 10. Re1 {[%emt 0:03:18]} f5 {[%emt 0:04:01] E19: Queen's Indian: Old Main Line with 7...Ne4 8 Qc2 Nxc3 8 Qxc3.} 11. h4 {[%emt 0:07:46]} h6 {[%emt 0:04:04]} 12. Ng5 {[%emt 0:04:18]} Qc8 {[%emt 0:07:50]} 13. Bxb7 {[%emt 0:01:15]} Qxb7 {[%emt 0:00:07]} 14. Nxe6 {[%emt 0:00:17]} Rf7 {[%emt 0:10:03]} 15. Qf3 {[%emt 0:06:40]} Qxf3 {[%emt 0:04:06]} 16. exf3 {[%emt 0:00:15]} Bf6 {[%emt 0:01:21] [#]} (16... Na6 $16 17. h5 d5) 17. Bd2 {[%emt 0:01:45]} ({White should play} 17. Bg5 $1 $18) 17... Nc6 {[%emt 0:02:25]} 18. Bc3 {[%emt 0:01:54]} Re8 {[%emt 0:01:55]} 19. Re3 {[%emt 0:02:08]} Nd8 {[%emt 0:14:13]} 20. Rae1 {[%emt 0:02:53]} (20. Nf4 $142 Rxe3 21. fxe3) 20... Nxe6 {[%emt 0:02:21]} 21. Rxe6 {[%emt 0:00:16]} Rxe6 {[%emt 0:00:13]} 22. Rxe6 {[%emt 0:00:20]} Re7 {[%emt 0:03:54]} 23. Rxe7 {[%emt 0:01:12]} Bxe7 {[%emt 0:00:33]} 24. d5 $16 {[%emt 0:00:04]} Kf7 {[%emt 0:02:29]} 25. Kf1 {[%emt 0:04:18]} g6 {[%emt 0:04:51]} 26. Ke2 {[%emt 0:00:17]} Ke8 {[%emt 0:00:51]} 27. Ke3 {[%emt 0:04:24]} Kf7 {[%emt 0:01:37]} 28. b4 {[%emt 0:02:23]} Ke8 {[%emt 0:01:04]} 29. h5 {[%emt 0:02:31]} Kf7 {[%emt 0:02:42]} 30. hxg6+ {[%emt 0:01:22]} Kxg6 {[%emt 0:00:06]} 31. g4 {[%emt 0:06:56]} a6 {[%emt 0:03:42]} 32. a4 {[%emt 0:01:42]} Bh4 {[%emt 0:06:50]} 33. Bd4 {[%emt 0:01:00]} Be7 {[%emt 0:01:16]} 34. a5 {[%emt 0:02:02]} bxa5 {[%emt 0:00:23]} 35. bxa5 {[%emt 0:00:02]} Kg5 {[%emt 0:01:11]} 36. Bg7 {[%emt 0:02:40]} fxg4 {[%emt 0:02:10]} 37. fxg4 {[%emt 0:00:12]} Kxg4 {[%emt 0:00:04]} 38. Bxh6 {[%emt 0:00:24]} Bf6 {[%emt 0:00:12]} 39. Kd3 {[%emt 0:00:28]} Kf3 {[%emt 0:00:21]} 40. Be3 {[%emt 0:01:16]} Bh4 {[%emt 0:00:05]} 41. Ba7 {[%emt 0:01:19]} Bxf2 {[%emt 0:02:16]} 42. Bb8 {[%emt 0:00:19]} Kf4 {[%emt 0:00:31]} 43. Bxc7 {[%emt 0:00:36]} Ke5 {[%emt 0:00:46]} 44. Bb6 {[%emt 0:01:12]} Be1 {[%emt 0:00:06]} 45. Bd4+ {[%emt 0:00:39]} Kf5 {[%emt 0:00:22]} 46. Bc3 {[%emt 0:04:20]} Bxc3 {[%emt 0:01:05]} 47. Kxc3 {[%emt 0:00:02]} Ke4 {[%emt 0:00:05]} 48. Kb3 {[%emt 0:00:56]} Ke5 {[%emt 0:00:23]} 49. Kc3 {[%emt 0:00:32]} Ke4 {[%emt 0:00:05]} 50. Kc2 {[%emt 0:01:14]} Kd4 {[%emt 0:00:06]} 51. Kb3 {[%emt 0:00:03]} Kc5 {[%emt 0:00:03]} 1/2-1/2

[Event "Austrian Youth-ch U16 Boys 2024"]
[Site "Leibnitz"]
[Date "2024.03.25"]
[Round "3.6"]
[White "Roessler, Felix"]
[Black "Wimmer, Michael"]
[Result "0-1"]
[ECO "A45"]
[WhiteElo "1879"]
[BlackElo "2143"]
[Annotator "RC"]
[PlyCount "54"]
[EventDate "2024.03.23"]
[EventType "swiss"]
[EventCountry "AUT"]
[SourceTitle "playchess.com"]
[Source "ChessBase"]
[SourceQuality "1"]
[TimeControl "5400+30"]

1. d4 {[%emt 0:00:03]} Nf6 {[%emt 0:00:12]} 2. Bg5 {[%emt 0:00:04]} Ne4 {[%emt 0:00:30]} 3. Bf4 {[%emt 0:00:06]} e6 {[%emt 0:01:04]} 4. f3 {[%emt 0:01:39]} Nf6 {[%emt 0:01:12]} 5. e4 {[%emt 0:00:48]} d5 {[%emt 0:01:01]} 6. Nc3 {[%emt 0:04:14]} Bb4 {[%emt 0:02:00]} 7. e5 {[%emt 0:03:51]} Nfd7 {[%emt 0:00:28]} 8. a3 {[%emt 0:00:42]} Bxc3+ {[%emt 0:03:21]} 9. bxc3 {[%emt 0:00:14]} c5 {[%emt 0:00:25]} 10. c4 {[%emt 0:03:55]} cxd4 {[%emt 0:02:34]} 11. cxd5 {[%emt 0:00:56]} Qa5+ {[%emt 0:01:56]} 12. c3 {[%emt 0:15:47]} Qxc3+ {[%emt 0:01:36]} 13. Bd2 {[%emt 0:00:09]} Qc7 {[%emt 0:05:03]} 14. d6 {[%emt 0:05:19]} Qc5 {[%emt 0:00:39]} 15. f4 {[%emt 0:02:15]} Qd5 {[%emt 0:05:56]} 16. Qc2 {[%emt 0:13:14]} Nc6 {[%emt 0:01:50]} 17. Nf3 {[%emt 0:01:46]} Nc5 {[%emt 0:03:16]} 18. Bb4 {[%emt 0:06:45]} Nb3 {[%emt 0:35:39]} 19. Bc4 {[%emt 0:08:32]} Nxa1 {[%emt 0:03:13]} 20. Qd3 {[%emt 0:00:22]} Nc2+ {[%emt 0:03:41]} 21. Qxc2 {[%emt 0:08:39]} d3 {[%emt 0:00:42]} 22. Bxd3 {[%emt 0:00:18]} Bd7 {[%emt 0:02:42]} 23. Be4 {[%emt 0:05:12]} Nxb4 {[%emt 0:01:24]} 24. axb4 {[%emt 0:00:16]} Qb5 {[%emt 0:00:24]} 25. Qb3 {[%emt 0:02:07]} Rc8 {[%emt 0:01:58]} 26. Kd2 {[%emt 0:02:15]} Rc4 {[%emt 0:01:27]} 27. Rb1 {[%emt 0:02:10]} Rxe4 {[%emt 0:01:08]} 0-1

[Event "Austrian Youth-ch U16 Boys 2024"]
[Site "Leibnitz"]
[Date "2024.03.25"]
[Round "3.7"]
[White "Nicolussi, Hieronymus"]
[Black "Standhartinger, Joachim"]
[Result "0-1"]
[ECO "C50"]
[WhiteElo "1861"]
[BlackElo "1930"]
[Annotator "RC"]
[PlyCount "41"]
[EventDate "2024.03.23"]
[EventType "swiss"]
[EventCountry "AUT"]
[SourceTitle "playchess.com"]
[Source "ChessBase"]
[SourceQuality "1"]
[TimeControl "5400+30"]

1. e4 {[%emt 0:00:01]} e5 {[%emt 0:00:42]} 2. Nf3 {[%emt 0:00:06]} Nc6 {[%emt 0:00:24]} 3. Bc4 {[%emt 0:00:19]} Bc5 {[%emt 0:00:38]} 4. d3 {[%emt 0:00:09]} Nf6 {[%emt 0:01:49]} 5. Nc3 {[%emt 0:00:10]} a6 {[%emt 0:02:21]} 6. Bg5 {[%emt 0:00:38]} h6 {[%emt 0:01:15]} 7. Bxf6 {[%emt 0:01:11]} Qxf6 {[%emt 0:02:06]} 8. Nd5 {[%emt 0:00:14]} Qd8 {[%emt 0:02:27]} 9. c3 {[%emt 0:00:46]} d6 {[%emt 0:03:56]} 10. d4 {[%emt 0:00:35]} Ba7 {[%emt 0:03:01]} 11. dxe5 {[%emt 0:00:22]} Nxe5 {[%emt 0:05:01]} 12. Nxe5 {[%emt 0:00:06]} dxe5 {[%emt 0:00:27]} 13. Qh5 {[%emt 0:00:24]} O-O {[%emt 0:23:53]} 14. Qxe5 {[%emt 0:04:38]} Re8 {[%emt 0:02:02]} 15. Qf4 {[%emt 0:00:10]} Qd6 {[%emt 0:05:03]} 16. Qxd6 {[%emt 0:00:07]} Rxe4+ {[%emt 0:00:51]} 17. Ne3 {[%emt 0:00:07]} cxd6 {[%emt 0:00:37]} 18. O-O-O {[%emt 0:00:07]} Bxe3+ {[%emt 0:00:57]} 19. fxe3 {[%emt 0:00:33]} Rxc4 {[%emt 0:00:23]} 20. Rxd6 {[%emt 0:00:24]} Bf5 {[%emt 0:03:22]} 21. Rf1 {[%emt 0:01:03]} 0-1

[Event "Austrian Youth-ch U16 Boys 2024"]
[Site "Leibnitz"]
[Date "2024.03.25"]
[Round "3.8"]
[White "Hellerschmid, Andreas"]
[Black "Maier, Tobias"]
[Result "0-1"]
[ECO "C47"]
[WhiteElo "1827"]
[BlackElo "1893"]
[Annotator "NA RC"]
[PlyCount "56"]
[EventDate "2024.03.23"]
[EventType "swiss"]
[EventCountry "AUT"]
[SourceTitle "playchess.com"]
[Source "ChessBase"]
[SourceQuality "1"]
[TimeControl "5400+30"]

1. e4 {[%emt 0:00:02]} e5 {[%emt 0:00:03]} 2. Nc3 {[%emt 0:00:04]} Nf6 {[%emt 0:00:10]} 3. Nf3 {[%emt 0:00:09]} Nc6 {[%emt 0:00:19]} 4. a3 {[%emt 0:00:06]} d6 {[%emt 0:14:09]} 5. d4 {[%emt 0:03:09]} exd4 {[%emt 0:00:53]} 6. Nxd4 {[%emt 0:00:08]} Be7 {[%emt 0:05:43]} 7. Bb5 {[%emt 0:13:42]} Bd7 {[%emt 0:00:48]} 8. Be3 {[%emt 0:02:57]} O-O {[%emt 0:01:46]} 9. h3 {[%emt 0:03:45]} Re8 {[%emt 0:04:35]} (9... Nxd4 $15 10. Qxd4 Bxb5 11. Nxb5 d5) 10. Qd2 {[%emt 0:08:37]} ({Günstiger ist} 10. Nf3 $11) 10... Ne5 {[%emt 0:12:23]} 11. Be2 {[%emt 0:01:47]} Bf8 {[%emt 0:04:40]} (11... c5 $11 12. Nf3 Qc7) 12. O-O-O {[%emt 0:05:15]} a6 {[%emt 0:02:45]} 13. g4 {[%emt 0:01:57]} c5 {[%emt 0:03:36]} 14. Nf5 {[%emt 0:03:22]} Bxf5 {[%emt 0:03:59]} 15. gxf5 {[%emt 0:00:11]} b5 {[%emt 0:00:22]} 16. Bg5 {[%emt 0:02:34]} b4 {[%emt 0:06:41] [#]} 17. Nd5 {[%emt 0:01:57]} (17. axb4 $1 $16 cxb4 18. Nd5) 17... bxa3 $11 {[%emt 0:02:46]} 18. Nxf6+ {[%emt 0:06:46]} gxf6 {[%emt 0:02:18]} 19. Bh6 {[%emt 0:00:12]} a2 {[%emt 0:00:36]} 20. Rdg1+ {[%emt 0:02:23]} Kh8 {[%emt 0:02:35]} 21. Qf4 {[%emt 0:00:37]} a1=Q+ {[%emt 0:00:36]} 22. Kd2 {[%emt 0:00:30]} Qxb2 {[%emt 0:00:30]} 23. Ke3 {[%emt 0:41:50]} Qa5 24. Bd3 {[%emt 0:00:00]} Qd4+ {[%emt 0:13:52]} 25. Ke2 {[%emt 0:00:00]} Nxd3 {[%emt 0:01:08]} 26. cxd3 {[%emt 0:00:00]} Qa2+ {[%emt 0:00:26]} 27. Kf1 {[%emt 0:00:00]} Qxd3+ {[%emt 0:01:24]} 28. Kg2 {[%emt 0:00:00]} Qxe4+ {[%emt 0:00:07]} 0-1

[Event "Austrian Youth-ch U16 Boys 2024"]
[Site "Leibnitz"]
[Date "2024.03.26"]
[Round "4.1"]
[White "Gruenwald, Simon"]
[Black "Leitgeb, Julian"]
[Result "1/2-1/2"]
[ECO "B48"]
[WhiteElo "2117"]
[BlackElo "2130"]
[Annotator "RC"]
[PlyCount "41"]
[EventDate "2024.03.23"]
[EventType "swiss"]
[EventCountry "AUT"]
[SourceTitle "playchess.com"]
[Source "ChessBase"]
[SourceQuality "1"]
[TimeControl "5400+30"]

1. e4 {[%emt 0:00:02]} c5 {[%emt 0:00:06]} 2. Nf3 {[%emt 0:00:02]} Nc6 {[%emt 0:00:11]} 3. d4 {[%emt 0:00:02]} cxd4 {[%emt 0:00:05]} 4. Nxd4 {[%emt 0:00:03]} e6 {[%emt 0:00:09]} 5. Nc3 {[%emt 0:00:05]} Qc7 {[%emt 0:00:04]} 6. Be3 {[%emt 0:00:04]} a6 {[%emt 0:00:16]} 7. Qf3 {[%emt 0:00:05]} Nf6 {[%emt 0:00:58]} 8. O-O-O {[%emt 0:00:03]} Ne5 {[%emt 0:00:07]} 9. Qg3 {[%emt 0:00:03]} b5 {[%emt 0:00:05]} 10. Bxb5 {[%emt 0:00:02]} axb5 {[%emt 0:01:10]} 11. Ndxb5 {[%emt 0:00:01]} Qb8 {[%emt 0:00:13]} 12. Bf4 {[%emt 0:00:06]} d6 {[%emt 0:00:55]} 13. Rxd6 {[%emt 0:00:02]} Nh5 {[%emt 0:01:35]} 14. Qg5 {[%emt 0:00:12]} Bxd6 {[%emt 0:00:05]} 15. Nxd6+ {[%emt 0:00:11]} Qxd6 {[%emt 0:00:02]} 16. Bxe5 {[%emt 0:00:12]} Ra5 {[%emt 0:00:12]} 17. Nd5 {[%emt 0:00:14]} Qd7 {[%emt 0:00:42]} 18. Bxg7 {[%emt 0:00:12]} Rg8 {[%emt 0:01:29]} 19. Qxh5 {[%emt 0:00:02]} exd5 {[%emt 0:00:15]} 20. Qxh7 {[%emt 0:01:17]} Rxg7 {[%emt 0:00:30]} 21. Qh8+ {[%emt 0:00:43]} 1/2-1/2